[Event "5th Cesme Open 2017"]
[Site "Cesme"]
[Date "2017.06.18"]
[Round "9.17"]
[White "Chighladze, Iveri"]
[Black "Unlu, Alp Bugra"]
[Result "1-0"]
[ECO "A29"]
[WhiteElo "2326"]
[BlackElo "1887"]
[Annotator "NA"]
[PlyCount "143"]
[EventType "swiss"]
[EventCountry "TUR"]
[SourceTitle "playchess.com"]
[Source "ChessBase"]
[SourceQuality "1"]
[TimeControl "5400+30"]

{[%evp 8,143,32,10,35,32767,32767,32767,8,8,29,39,56,25,37,24,37,31,35,28,44,29,33,41,32767,32767,32767,32767,32767,25,34,29,22,7,145,0,2,7,7,0,0,-14,24,30,27,0,12,25,23,24,27,0,84,0,0,0,0,-60,-33,-32,-34,-60,-42,-129,32767,32767,32767,32767,32767,-145,-120,32767,32767,32767,32767,32767,32767,32767,32767,-51,0,-70,-50,-47,-57,-22,0,-90,-58,-43,32767,32767,32767,32767,32767,32767,32767,32767,32767,32767,32767,32767,8,32767,32767,55,0,22,406,212,367,92,152,147,218,32767,159,32767,32767,259,460,201,12840,12841,1456,12839,32767,32767,5097,12844,32767,32767,29981,12847,12847,29987,12848,29989]} 1. c4 {[%emt 0:03:30]} Nf6 {[%emt 0:01:00]} 2. Nc3 {[%emt 0:00:30]} g6 {[%emt 0:00:00]} 3. g3 {[%emt 0:00:30]} Bg7 {[%emt 0:00:00]} 4. Bg2 {[%emt 0:00:30]} O-O {[%emt 0:00:00]} 5. Nf3 {[%emt 0:01:00]} d6 {[%emt 0:00:00]} 6. O-O {[%emt 0:00:30]} e5 {[%emt 0:06:30]} 7. Rb1 {[%emt 0:00:30]} Nc6 {[%emt 0:09:00] ]%2[%c} 8. b4 {[%emt 0:07:00] ]]%2[%c} Ng4 $146 {[%emt 0:11:30] ]]%2[%c A29: English Opening: Four Knights Variation with 4 g3} ({Predecessor:} 8... Be6 9. d3 h6 10. b5 Ne7 11. a4 Qd7 12. Ba3 Rfe8 13. Nd2 Rab8 14. a5 b6 15. Nde4 Nh7 16. axb6 axb6 17. Bb2 f5 18. Nd2 Nf6 19. Ra1 d5 20. cxd5 Nexd5 21. Nxd5 Bxd5 22. Bxd5+ Qxd5 {1-0 (74) Nepomniachtchi,I (2705)-Nakamura,H (2816) Baku 2015}) 9. h3 {[%emt 0:01:30] ]]%2%c} Nh6 {[%emt 0:00:30] ]]%22%c} 10. d3 {[%emt 0:00:30] ]]%22%c} f5 {[%emt 0:00:30] ]]%22c} 11. Bg5 {[%emt 0:03:30] ]]2222c} Qd7 {[%emt 0:04:30] ]]]222c} 12. Nd5 {[%emt 0:00:30] ]]]22c} Nf7 {[%emt 0:03:30] ]]]222c} 13. Bf6 {[%emt 0:01:30] ]]]222c} Ncd8 {[%emt 0:05:30] ]]]22c} 14. e4 {[%emt 0:09:30] ]]]]22c} c6 {[%emt 0:01:30] ]]]]22c} 15. Ne7+ $1 {[%emt 0:00:30] ]]]22c} Kh8 {[%emt 0:00:30] ]]]]22c} 16. Bxg7+ {[%emt 0:00:30] ]]]]22c} Kxg7 {[%emt 0:00:00] ]]]22c} 17. Nxc8 {[%emt 0:00:30] ]]]]22c} Rxc8 {[%emt 0:00:00] ]]]]22c} 18. exf5 {[%emt 0:00:00] ]]]222} Qxf5 {[%emt 0:03:30] ]]]]22} 19. d4 {[%emt 0:05:00] ]]]]22} Ne6 {[%emt 0:09:30] ]]]]22} 20. b5 {[%emt 0:02:30] [%clk 1:06]45.10]]} Nfg5 {[%emt 0:10:30] c%%lk11:0] [#]} (20... cxb5 $11 21. Rxb5 b6) 21. Nh4 {[%emt 0:02:30] ]%%%%} (21. Nxg5 $1 $16 Nxg5 22. bxc6 bxc6 23. dxe5 dxe5 24. h4 Nf3+ 25. Bxf3 Qxf3 26. Rb7+ Kg8 27. Rxa7) 21... Qf6 {[%emt 0:01:30] ]]%%%} 22. dxe5 {[%emt 0:00:00] [%clk 1:06]]5.1]]} dxe5 {[%emt 0:06:30] %%cll111:} 23. bxc6 {[%emt 0:00:00] %%cll11:} bxc6 {[%emt 0:00:30] %%cll [%clk 0:01:12] lk %%cll1} 24. Rb7+ {[%emt 0:09:30] %%ccl [%clk 0:01:41]l %%ccl1} Rf7 {[%emt 0:01:30] %%ccl [%clk 0:01:12]] %%ccl1} 25. Rxf7+ {[%emt 0:00:30] %%% [%clk 0:01:41] ]] %%%c} Nxf7 {[%emt 0:00:30] [%clk 0:32]5]. [%clk 0:01:12] 4] [%clk 0:32]5]..} 26. Kh2 {[%emt 0:07:30] % [%clk 0:50:0]] [%clk 0:01.41]} c5 {[%emt 0:07:30] [%clk 0:01.12][} (26... Rd8 $5 {[%cal Rd8d1]} 27. Qc1 Nd4 $11) 27. Bd5 {[%emt 0:06:30] [%clk 0:01.41]]} Rf8 {[%emt 0:05:43] cclk [%clk 0:01:12] :.} 28. Qa4 {[%emt 0:03:30] 7]ccl [%clk 0:01:41] ]] 7]cclc} Qe7 {[%emt 0:04:18] ccc [%clk 0:01:12] ] cccc} (28... Nf4 $5) 29. Ng2 {[%emt 0:05:30] 59ccc [%clk 0:01:41] ]]} Nfg5 {[%emt 0:03:31] cc [%clk 0:01:12] ]] [#] ccc} (29... Nd4 $11) 30. f4 {[%emt 0:03:30] ]]ccc [%clk 0:01:41] ]} ({White should try} 30. Rb1 $1 $16 {[%cal Rb1b7]} Nf3+ 31. Kh1) 30... exf4 {[%emt 0:00:12] ccc [%clk 0:01:12]} 31. gxf4 {[%emt 0:00:30] 6 [%clk 0:31:0]] [%clk 0:01.41] 6 [%clk 0:31:0]]]} Nd4 {[%emt 0:03:49] lcll [%clk 0:01:12] 10} 32. Qd1 {[%emt 0:03:30] 5] [%clk 0:01:41] 11} ({White should try} 32. Qa3 $11 Nge6 33. Rb1) 32... Nge6 {[%emt 0:03:16] [%clk 0:01.12] 11} 33. Re1 {[%emt 0:00:30] ]] [%clk 0:01:41] 11} Rf6 {[%emt 0:00:49] [%clk 0:01.12] 11} 34. Qg4 {[%emt 0:00:30] 2] [%clk 0:01:41] 11} Qd6 {[%emt 0:00:31] [%clk 0:06.51] [%clk 0:06:51] ]] [%clk 0:01:12]0} 35. Rf1 {[%emt 0:04:30] 1 [%clk 0:01:41]]} (35. Bxe6 $142 Nxe6 36. Re4) 35... a5 {[%emt 0:05:35] %% [%clk 0:01:12] l %%c} 36. Kh1 {[%emt 0:00:30] 4] [%clk 0:01:41] 22} Nf5 {[%emt 0:01:03] [%clk 0:01.12] 22} 37. Kg1 {[%emt 0:00:00] ]] [%clk 0:01:41] 22} h5 {[%emt 0:00:57] [%clk 0:00.46] [ [%clk 0:01:12] [ [%clk 0:00.46] [ [%clk 0:00:46]} 38. Qd1 {[%emt 0:25:19] %% [#]} Nfd4 $1 {[%emt 0:00:04] %%} 39. f5 {[%emt 0:00:30]} Rxf5 {[%emt 0:00:30]} 40. Rxf5 {[%emt 0:00:30]} Nxf5 {[%emt 0:00:30] [%clk 0:00.29]} 41. Qe1 {[%emt 0:00:30]} Ned4 {[%emt 0:00:30]} 42. Qxa5 {[%emt 0:00:30] ]} Ne2+ {[%emt 0:00:30] ]} 43. Kf2 $1 {[%emt 0:00:30]} Nf4 {[%emt 0:00:30] ]} (43... Neg3 $5 {[%cal Rd6f6]} 44. Qc3+ Kh7 $17) 44. Qc3+ {[%emt 0:00:30] ]} Kh7 {[%emt 0:00:30] ]} 45. a4 {[%emt 0:00:30] ]} Nxd5 {[%emt 0:00:30] ]} 46. cxd5 {[%emt 0:00:30] ]} Qxd5 {[%emt 0:00:30] ]} (46... c4 $5) 47. a5 {[%emt 0:00:30] ]} (47. Ne3 $11 Qe4 48. Nxf5 Qxf5+ 49. Qf3) 47... Qa2+ {[%emt 0:01:02] ]} 48. Kg1 {[%emt 0:00:02]} Qb1+ {[%emt 0:00:07] ]} 49. Kh2 {[%emt 0:00:09] ]} Qb8+ {[%emt 0:00:06] ]} 50. Kg1 {[%emt 0:00:15] ]} Qb1+ {[%emt 0:00:04] ]} 51. Qe1 {[%emt 0:00:44] ]} Qxe1+ {[%emt 0:01:04] ]} 52. Nxe1 {[%emt 0:00:02] ]} Nd6 {[%emt 0:00:13] ]} 53. a6 {[%emt 0:00:31]} Nc8 {[%emt 0:00:46] ]} 54. Kf2 {[%emt 0:00:22] ]} g5 {[%emt 0:00:18] [%clk 0:00.49]} 55. Nd3 {[%emt 0:00:44] [} g4 {[%emt 0:01:09] [} 56. h4 {[%emt 0:01:31]} c4 {[%emt 0:00:40]} 57. Nf4 {[%emt 0:00:15]} Kh6 $2 {[%emt 0:00:21]} (57... Na7 $1 $11) 58. Ne2 {[%emt 0:01:01]} (58. Ke3 $142) 58... Kg6 $2 {[%emt 0:00:28]} (58... Na7 $1 $11) 59. Ng3 {[%emt 0:00:08]} (59. Ke3 $142) 59... Nb6 {[%emt 0:00:50]} 60. Ke3 {[%emt 0:00:08]} Na8 {[%emt 0:00:30]} 61. a7 {[%emt 0:01:14]} Nc7 {[%emt 0:00:19]} 62. Ke4 {[%emt 0:00:13]} Kh6 {[%emt 0:00:33]} 63. Ne2 {[%emt 0:00:21]} Kg6 64. Nf4+ $2 {[%emt 0:00:08]} (64. Ke5 Kf7 65. Kf5) 64... Kh6 $2 {[%emt 0:01:09]} (64... Kf7 $14) 65. Nd5 {[%emt 0:00:06]} Na8 {[%emt 0:00:03]} 66. Kd4 {[%emt 0:00:46]} g3 {[%emt 0:00:43]} 67. Nf4 {[%emt 0:00:06]} Nb6 {[%emt 0:00:04]} 68. Kc5 {[%emt 0:00:16]} Na8 {[%emt 0:00:29]} 69. Kxc4 {[%emt 0:00:07] [%clk 0:04.06]} Kh7 {[%emt 0:01:03]} 70. Kc5 {[%emt 0:00:00]} Kg8 {[%emt 0:00:30]} 71. Kc6 {[%emt 0:00:21]} Kf7 {[%emt 0:00:14]} 72. Kb7 {[%emt 0:00:06]} 1-0

[Event "5th Cesme Open 2017"]
[Site "Cesme"]
[Date "2017.06.18"]
[Round "9.18"]
[White "Tuncer, Tuna"]
[Black "Yerden, Huseyin Eren"]
[Result "1-0"]
[ECO "B06"]
[WhiteElo "2302"]
[BlackElo "1857"]
[Annotator "ChessBase"]
[PlyCount "55"]
[EventType "swiss"]
[EventCountry "TUR"]
[SourceTitle "playchess.com"]
[Source "ChessBase"]
[SourceQuality "1"]
[TimeControl "5400+30"]

1. e4 g6 2. d4 Bg7 3. Nf3 d6 4. Bc4 c6 5. Bb3 Bg4 {[%emt 0:02:00] ]} 6. Bxf7+ {[%emt 0:22:00] ]} Kxf7 {[%emt 0:01:30] ]} 7. Ng5+ {[%emt 0:00:00] ]} Ke8 {[%emt 0:00:30] ]} 8. Qxg4 {[%emt 0:00:00] ]} Bxd4 {[%emt 0:09:30] ]} 9. Qe6 {[%emt 0:01:30] ]} Nh6 {[%emt 0:12:30] ]} 10. Qh3 {[%emt 0:04:30] ]]} Nf7 {[%emt 0:04:30] ]]} 11. Nxf7 {[%emt 0:00:30] ]]} Kxf7 {[%emt 0:00:30] ]]} 12. Qb3+ {[%emt 0:00:30] ]]} Kg7 {[%emt 0:01:30] ]]} 13. Qxb7 {[%emt 0:01:30] ]]} Nd7 {[%emt 0:00:30] ]]} 14. O-O {[%emt 0:09:30] ]]} Ne5 {[%emt 0:02:30] ]]} 15. c3 {[%emt 0:02:30] ]]} Bb6 {[%emt 0:01:30] ]]} 16. Qa6 {[%emt 0:03:30] ]]} Rf8 {[%emt 0:04:30] ]]} 17. Qe2 {[%emt 0:01:30] ]]]} h5 {[%emt 0:03:30] [%clk 0:54] [%clk 0:54:0] ]} 18. h3 {[%emt 0:15:30] c%c} d5 {[%emt 0:04:30]} 19. exd5 {[%emt 0:05:30]} Qxd5 {[%emt 0:00:00]} 20. Be3 {[%emt 0:00:30] [%clk 0:31] [ [%clk 0:31:0]} Bxe3 {[%emt 0:10:00] %} 21. Qxe3 {[%emt 0:00:30] %} Rad8 {[%emt 0:06:30] %} 22. Nd2 {[%emt 0:04:30] %} Rf5 {[%emt 0:07:30]} 23. Nb3 {[%emt 0:03:30]} g5 {[%emt 0:06:30]} 24. Nd4 {[%emt 0:01:30]} Rf4 {[%emt 0:01:30]} 25. Rfe1 {[%emt 0:01:30]} Nc4 {[%emt 0:01:30]} 26. Qxe7+ {[%emt 0:02:30]} Rf7 {[%emt 0:00:30]} 27. Ne6+ {[%emt 0:00:00]} Kg6 {[%emt 0:00:30]} 28. Qxd8 {[%emt 0:00:00] [%clk 0:21]} 1-0

[Event "5th Cesme Open 2017"]
[Site "Cesme"]
[Date "2017.06.18"]
[Round "9.19"]
[White "Maden, Mirac Kerem"]
[Black "Lomsadze, Davit"]
[Result "1/2-1/2"]
[ECO "A44"]
[WhiteElo "1879"]
[BlackElo "2341"]
[Annotator "NA"]
[PlyCount "108"]
[EventType "swiss"]
[EventCountry "TUR"]
[SourceTitle "playchess.com"]
[Source "ChessBase"]
[SourceQuality "1"]
[TimeControl "5400+30"]

{[%evp 8,108,75,32767,32767,32767,32767,58,83,54,91,42,48,19,54,18,91,93,137,67,62,52,56,87,46,-72,32767,32767,32767,32767,32767,0,57,35,61,0,8,2,0,-438,-457,-424,-459,-414,-420,-514,-506,-529,-520,-493,-570,-635,-255,-254,-277,-281,-141,-226,-195,-295,-276,-537,-654,-734,-505,-527,32767,32767,-554,-483,-212,-175,-14,-393,0,0,0,0,0,0,0,0,32767,32767,32767,32767,32767,32767,0,0,0,0,0,0,0,0,0,0,0,0,0,0,0]} 1. d4 {[%emt 0:00:30]} g6 {[%emt 0:05:00]} 2. c4 {[%emt 0:00:00]} Bg7 {[%emt 0:00:30]} 3. Nf3 {[%emt 0:00:00]} c5 {[%emt 0:00:30]} 4. d5 {[%emt 0:00:00]} e5 {[%emt 0:00:00]} 5. e4 {[%emt 0:00:00]} d6 {[%emt 0:00:00]} 6. Nc3 {[%emt 0:00:30]} h6 {[%emt 0:00:00] A44: Semi-Benoni} (6... Ne7 7. h4 h6 8. Be3 Nd7 9. h5 f5 10. hxg6 f4 11. Bd2 Nxg6 12. Nh4 Nxh4 13. Qh5+ Kf8 14. Qxh4 Qxh4 15. Rxh4 {½-½ (34) Troff,K (2528)-Kadric,D (2546) Dallas 2016}) 7. Be2 {[%emt 0:05:30]} Ne7 {[%emt 0:07:00] [%c} 8. Be3 {[%emt 0:11:00] ][%c} O-O $146 {[%emt 0:01:30] ][%c} ({Predecessor:} 8... a6 9. Nd2 f5 10. f3 Nd7 11. Qc2 Nf6 12. a3 Bd7 13. b4 b6 14. Rb1 {1-0 (63) Tamas,K (1988)-Joo,J (2066) Hungary 2016}) 9. Qc2 {[%emt 0:01:30] ][%c} (9. Qd2 $16) 9... f5 {[%emt 0:00:30] ][%c} 10. O-O-O {[%emt 0:00:30] ][%c} Na6 {[%emt 0:02:30] ][%c} 11. a3 {[%emt 0:02:30] ]%%} f4 {[%emt 0:00:30] ]]%} (11... Nc7 $11 {keeps the balance.}) 12. Bd2 {[%emt 0:00:30] ]]%} g5 {[%emt 0:00:30] ]]%} 13. g4 {[%emt 0:04:30] ]]%%} Ng6 {[%emt 0:00:30] ]]%%} 14. Rdg1 {[%emt 0:07:30] ]]%} (14. h4 $5) 14... Bf6 {[%emt 0:00:30] ]]] [#]} 15. h4 $1 {[%emt 0:04:30] ]]]} Nxh4 {[%emt 0:00:30] ]]]} 16. Nxh4 $14 {[%emt 0:01:30] ]]] stays ahead.} (16. Rxh4 {[%emt 0:01:30]}) 16... gxh4 {[%emt 0:00:30] ]]]} 17. g5 {[%emt 0:00:30] ]]]} Bxg5 {[%emt 0:00:30] ]]]} 18. Rxh4 {[%emt 0:00:30] ]]]} Qf6 {[%emt 0:03:30] ]]]} 19. Qd1 {[%emt 0:07:30] ]]} Kf7 {[%emt 0:00:30] ]]]} (19... Nc7 $11) 20. Rh5 {[%emt 0:02:30] ]]]} Ke7 {[%emt 0:00:30] ]]]} 21. Qb3 {[%emt 0:04:30] ]]]} Nc7 {[%emt 0:01:30] ]]]} 22. Bg4 {[%emt 0:03:30] ]]]} Bxg4 {[%emt 0:02:30] ]]]} 23. Qxb7 $2 {[%emt 0:01:30] ]]]]} (23. Rxg4 $11 {and White has nothing to worry.} Rab8 24. Rg1) 23... Bxh5 {[%emt 0:00:00] ]]]]} 24. Qxc7+ {[%emt 0:00:30] ]]]} Ke8 {[%emt 0:00:00] ]]]} 25. Nb5 {[%emt 0:01:30] ]]]} Rd8 {[%emt 0:00:00] ]]]} 26. Ba5 {[%emt 0:04:30] ]]]} Rd7 {[%emt 0:01:00] ]]]} 27. Qc6 {[%emt 0:01:30] ]]]} Ke7 {[%emt 0:00:30] ]]} 28. b4 {[%emt 0:01:30] ]]]} cxb4 {[%emt 0:03:30] [%clk 1:16][[} 29. c5 {[%emt 0:03:30] %%%l} Be8 {[%emt 0:05:30] %%%%} (29... dxc5 $142 30. Qxc5+ Kf7 31. Bxb4 Rg8 32. Nd6+ Kg6) 30. Nxd6 {[%emt 0:00:30] % [%clk 0:37:0] ckcl} bxa3 {[%emt 0:03:30] ]%} 31. f3 {[%emt 0:06:30] ]%} Rf7 {[%emt 0:06:30] [%clk 1:02] ] [%clk 1:02:0]} (31... Rh8 $19 32. Nf5+ Kf7) 32. Nxf7 {[%emt 0:23:04] c} (32. Nxe8 $17 {keeps fighting.} Kxe8 33. Qb5) 32... Kxf7 {[%emt 0:01:30] 2]} 33. Qc8 {[%emt 0:00:01] [#]} (33. Qb5 {was worth a try.}) 33... Qe7 $1 {[%emt 0:03:30] 5]} 34. Rg2 $2 {[%emt 0:00:01]} (34. Kd2 a2 35. c6 Rxd5+ 36. exd5) 34... Rb7 {[%emt 0:02:30] 4]} 35. Rc2 {[%emt 0:01:26]} Qd7 {[%emt 0:01:30] 8]} 36. Qxd7+ {[%emt 0:04:04]} Bxd7 {[%emt 0:00:30] 4} 37. c6 {[%emt 0:00:04]} Rb5 {[%emt 0:00:30] 2]} 38. Bc3 {[%emt 0:00:09] [#]} Bxc6 {[%emt 0:03:30] ]]} (38... Bg4 $142 $1 39. Rf2 (39. fxg4 f3+) 39... Rc5) 39. dxc6 {[%emt 0:00:07]} Rc5 $2 {[%emt 0:00:30] 4]} (39... Bd8 $19 40. Bxe5 Rxe5) 40. Bxe5 $2 {[%emt 0:01:18]} (40. Ba1 $11 Rxc2+ 41. Kxc2) 40... Rxc2+ $2 {[%emt 0:00:00] 1]} (40... Rxe5 $19 41. c7 {[#]} a2 $1 {[%mdl 512]} 42. Rxa2 Re8) 41. Kxc2 {[%emt 0:00:31]} Ke6 {[%emt 0:00:00] ]} 42. c7 {[%emt 0:01:32]} Kd7 {[%emt 0:00:30] 3]} 43. Bd6 {[%emt 0:00:08]} h5 {[%emt 0:00:30] 5]} 44. e5 {[%emt 0:00:01] [%clk 0:04.30] k} h4 {[%emt 0:02:30] ]} 45. e6+ {[%emt 0:01:11] %} Kc8 {[%emt 0:00:30] 3} 46. Bxf4 {[%emt 0:00:03] %} Be7 {[%emt 0:00:30] 0} 47. Be5 {[%emt 0:00:28] %} h3 {[%emt 0:00:30] 2} 48. Kb3 {[%emt 0:01:26]} Kb7 {[%emt 0:00:30] 5} 49. Ka2 {[%emt 0:00:59]} a5 {[%emt 0:00:00] 7} 50. Kb3 {[%emt 0:00:27]} a4+ {[%emt 0:00:00] 0} 51. Ka2 {[%emt 0:00:02]} Bb4 {[%emt 0:00:30] 8} 52. Bg3 {[%emt 0:00:42] [%clk 0:03.46]} Be7 {[%emt 0:02:30]} 53. Be5 {[%emt 0:00:14]} Kc8 {[%emt 0:00:30]} 54. Bg3 {[%emt 0:00:39]} Kb7 $11 {[%emt 0:00:30]} 1/2-1/2

[Event "5th Cesme Open 2017"]
[Site "Cesme"]
[Date "2017.06.18"]
[Round "9.20"]
[White "Gokerkan, Cem Kaan"]
[Black "Kocak, Can"]
[Result "1-0"]
[ECO "B07"]
[WhiteElo "2333"]
[BlackElo "1930"]
[Annotator "NA"]
[PlyCount "161"]
[EventType "swiss"]
[EventCountry "TUR"]
[SourceTitle "playchess.com"]
[Source "ChessBase"]
[SourceQuality "1"]
[TimeControl "5400+30"]

{[%evp 8,161,62,47,72,58,65,61,61,29,43,23,214,55,74,88,95,76,169,164,213,87,133,152,134,157,154,144,152,144,140,145,188,126,127,109,134,116,133,114,175,164,32767,172,162,179,175,179,168,183,178,175,193,189,262,285,275,32767,32767,32767,32767,32767,32767,32767,32767,32767,32767,32767,32767,32767,32767,32767,32767,32767,32767,32767,32767,32767,32767,32767,32767,32767,32767,32767,32767,32767,32767,32767,32767,32767,32767,32767,32767,324,32767,32767,32767,32767,32767,32767,389,163,32767,32767,32767,32767,32767,32767,32767,32767,32767,32767,32767,32767,202,32767,193,232,203,489,32767,264,256,32767,1201,32767,762,32767,796,1061,511,0,1114,0,802,32767,32767,914,32767,32767,32767,777,1554,29958,12837,29980,29980,29983,12843,29984,29984,12847,29985,12847,29986,29987]} 1. e4 {[%emt 0:13:30] ]06[[clk} d6 {[%emt 0:00:00] ]06[[clk} 2. d4 {[%emt 0:00:30] ]06[[clk} Nf6 {[%emt 0:00:30] ]0[[[cl} 3. Nc3 {[%emt 0:00:00] ]00[[cl} g6 {[%emt 0:00:30] ]00[[cl} 4. Be3 {[%emt 0:01:00] ]00[[c} c6 {[%emt 0:00:00] ]00[[c} 5. a4 {[%emt 0:04:30] ]]0[[c LiveBook: 48 Games} Ng4 {[%emt 0:09:00] ]]0[[c} 6. Bg5 {[%emt 0:02:30] ]][[[[} h6 {[%emt 0:00:30] ]]][[[} 7. Bh4 {[%emt 0:00:00] ]]][[[} Bg7 {[%emt 0:00:30] ]]][[[} 8. Nf3 {[%emt 0:00:00] ]]][[[} O-O {[%emt 0:00:30] ]]][[[} 9. Bc4 {[%emt 0:03:30] ]]][[[} Qb6 $2 {[%emt 0:11:30] ]]]][[} (9... Nd7 $14) 10. Bb3 {[%emt 0:01:30] ]]]][[} (10. Bxe7 $18 Qxb2 11. Ne2) 10... Re8 {[%emt 0:11:30] ]]]]][} 11. O-O {[%emt 0:01:30] ]]]]][} e5 {[%emt 0:00:30] ]]]][[} 12. dxe5 {[%emt 0:04:30] ]]]]][} dxe5 {[%emt 0:01:30] ]]]]][} (12... Nxe5 $16 {was worth a try.} 13. Qxd6 (13. Nxe5 dxe5 14. Qf3 Qc7 $14) 13... Nxf3+ 14. gxf3 Be6) 13. Qd6 {[%emt 0:01:30] ]]]]][} g5 {[%emt 0:06:30] ]]]]]] [#]} (13... Na6 $16) 14. Bg3 {[%emt 0:05:30] ]]]]]]} ({But not} 14. Qg6 $2 Qxb3 15. Qxg7+ Kxg7 $19) (14. Bxg5 $1 $18 {[%mdl 512] is the precise move to win.} Na6 (14... hxg5 15. Nxg5) 15. Be7 (15. Qg6 $2 Qxb3 16. Qxg7+ Kxg7 $19)) 14... Nd7 {[%emt 0:09:30] [%clk 0:45] [%clk 0:45:0] ]]][[} 15. h4 {[%emt 0:16:30] c%clk000:5} ({Much weaker is} 15. Qg6 $6 Qxb3 16. Qxg7+ Kxg7 $14) ({Don't take} 15. h3 Ngf6 $16) 15... gxh4 {[%emt 0:06:30] c%cck00} 16. Nxh4 {[%emt 0:00:30] ]cccc0} Nf8 {[%emt 0:01:30] [%clk 0:38] [%clkk:} 17. a5 {[%emt 0:05:30] %%llk [:0%clk 0:36] %%llk [%:0clk 0:36] %%llk} Qd4 {[%emt 0:01:30] %%%lk} 18. Rfd1 {[%emt 0:00:00] %%%lk} Qxd6 {[%emt 0:00:30] %%%%kk} 19. Rxd6 {[%emt 0:00:00] %%%%kk} Be6 {[%emt 0:00:30] [%clk 0:36] %%clkk} 20. Bxe6 {[%emt 0:02:30] [ccckk} (20. a6 $18) 20... Nxe6 {[%emt 0:01:30] [[ccck} 21. Nf5 {[%emt 0:02:30] [[[} Bf8 {[%emt 0:06:30] ][[} 22. Rd7 {[%emt 0:01:30] ][[} Nc5 {[%emt 0:02:30] ][} 23. Rd2 {[%emt 0:01:30] ][[} h5 {[%emt 0:01:30] ][[} 24. f3 {[%emt 0:00:30] ][[} Nh6 {[%emt 0:00:00] ][[} 25. Nd6 {[%emt 0:02:30] ][[} Re6 {[%emt 0:01:00] ][[} 26. Rad1 {[%emt 0:00:30] ][} Rd8 {[%emt 0:02:30] ]]} 27. Nc4 $1 {[%emt 0:01:30] ]]} Rxd2 {[%emt 0:00:30] ]]} 28. Rxd2 {[%emt 0:00:30] ]]} ({But not} 28. Nxd2 f5 $16) 28... f6 {[%emt 0:00:30] ]]} 29. Rd8 {[%emt 0:04:30] [%clk 0:24] %c%klk} Nf7 {[%emt 0:15:50] kk} 30. Ra8 {[%emt 0:00:30] 0]kkk} Nd7 {[%emt 0:01:05] kk} (30... Nd6 $142) 31. Bf2 {[%emt 0:00:30] ] [%clk 0:24:0] c%ll} a6 {[%emt 0:00:08] c [%clk 0:09:27] 455]]} 32. Rc8 {[%emt 0:06:45]} Re7 {[%emt 0:01:46]} 33. Na4 {[%emt 0:00:23] ]} Ng5 {[%emt 0:03:42] ]]} 34. Nc5 {[%emt 0:01:59] ]]} Rg7 {[%emt 0:00:17] [%clk 0:05.18] ]} 35. Kf1 {[%emt 0:03:42] %%lc} Nxc5 {[%emt 0:00:24] %%%c} 36. Bxc5 {[%emt 0:00:30] %%%c} Ne6 {[%emt 0:00:30] %%%} 37. Bxf8 {[%emt 0:00:11] %%%} Nxf8 {[%emt 0:00:01] % [%clk 0:03:38]] % [%clk 0:04:31]} 38. Rd8 {[%emt 0:04:39] [} Rd7 {[%emt 0:02:39]} 39. Rxd7 {[%emt 0:00:30]} Nxd7 {[%emt 0:00:30]} 40. Nd6 {[%emt 0:00:30] ]} b6 {[%emt 0:00:30] ]} 41. Nc8 {[%emt 0:00:30] ] [%clk 0:10.27]} bxa5 {[%emt 0:00:30] ] [} 42. Ne7+ {[%emt 0:00:30] ]] [} Kf7 {[%emt 0:00:30] ]]} 43. Nxc6 {[%emt 0:00:30] ]} a4 {[%emt 0:00:30] ]]} 44. Ke2 {[%emt 0:00:30] ]]} Ke6 {[%emt 0:00:30] ]} 45. Kd3 {[%emt 0:00:30] ]]} Kd6 {[%emt 0:00:30] ]]} 46. Nb4 {[%emt 0:00:30] ]} a5 {[%emt 0:00:30] ]] [%clk 0:03.30]} 47. Nd5 {[%emt 0:00:30] ]]} f5 {[%emt 0:00:30] ]]} 48. Nc3 {[%emt 0:00:30] ]]} Nc5+ {[%emt 0:00:30] ]]} 49. Kc4 {[%emt 0:00:30] ]]} f4 {[%emt 0:00:30] ]} 50. Kb5 {[%emt 0:01:07] ]} h4 {[%emt 0:03:22] ]} 51. Kxa5 {[%emt 0:00:27] ]} Kc6 {[%emt 0:00:41] ]} 52. Kb4 {[%emt 0:00:32] ]} Ne6 {[%emt 0:00:22] ]} 53. Ne2 {[%emt 0:00:01] ]]} Nc5 {[%emt 0:00:41] ]]} 54. Ng1 {[%emt 0:00:39] ]} (54. Nc1 $142) 54... Ne6 {[%emt 0:00:26] ]]} 55. Kxa4 {[%emt 0:00:15] ]]} Nd4 {[%emt 0:00:04] ]} 56. c3 {[%emt 0:00:08] ]} Nc2 {[%emt 0:00:10] ]} 57. Ka5 {[%emt 0:04:40] [%clk 0:05.38] ]} Ne3 {[%emt 0:00:22] c[} 58. b4 {[%emt 0:00:24]} Nxg2 {[%emt 0:00:30]} 59. Ka6 {[%emt 0:00:06]} Ne3 {[%emt 0:00:46]} 60. b5+ {[%emt 0:00:01]} Kc7 {[%emt 0:00:00] ]} 61. b6+ {[%emt 0:00:29] ]} Kb8 {[%emt 0:00:00] ]} 62. Kb5 {[%emt 0:03:41] ]} Kb7 {[%emt 0:01:02] ]} 63. Kc5 {[%emt 0:00:39] ]} Ng2 {[%emt 0:01:38] ]} 64. c4 {[%emt 0:01:00] ]} Ne3 {[%emt 0:00:15] ]} 65. Nh3 {[%emt 0:00:07]} Ng2 $2 {[%emt 0:00:46] ]} (65... Ka6 66. Kc6 Nxc4) 66. Kd6 {[%emt 0:00:41] ]} Ne3 {[%emt 0:00:19] ]} 67. c5 {[%emt 0:00:13] ]} Nc4+ $1 {[%emt 0:00:40] ]} 68. Kd7 $2 {[%emt 0:01:08] [%clk 0:01.29] ]} Na5 {[%emt 0:00:21] %} 69. Kd6 $2 {[%emt 0:01:04] %} (69. Ng5 $18 Nc6 70. Kd6) 69... Nc4+ {[%emt 0:00:24]} 70. Kd7 {[%emt 0:00:01]} Na5 {[%emt 0:00:17]} 71. Ke6 {[%emt 0:00:42]} Nc4 {[%emt 0:00:51] [%clk 0:01.13]} 72. Kd5 $18 {[%emt 0:01:46]} Nd2 {[%emt 0:00:00]} 73. Kxe5 {[%emt 0:00:38]} Nxf3+ {[%emt 0:00:28]} 74. Kxf4 {[%emt 0:00:01]} Nd4 {[%emt 0:00:39]} 75. Ke5 {[%emt 0:00:30]} Nc6+ {[%emt 0:00:22]} 76. Kd6 {[%emt 0:00:07]} Nd8 {[%emt 0:00:18]} 77. e5 {[%emt 0:00:13]} Nf7+ {[%emt 0:00:12]} 78. Kd5 {[%emt 0:00:01]} Nd8 {[%emt 0:00:55]} 79. e6 {[%emt 0:00:19]} Nc6 {[%emt 0:00:14]} 80. Kd6 {[%emt 0:00:08]} Nd4 {[%emt 0:00:37]} 81. e7 {[%emt 0:00:08]} 1-0